[Event "*** SCC Grand Prix: Titled Tuesday Blitz"]
[Site "Chess.com"]
[Date "2020.10.13"]
[Round "1"]
[White "pawnhopper316"]
[Black "albi1999"]
[Result "1/2-1/2"]
[WhiteElo "2293"]
[BlackElo "2616"]
[TimeControl "180+1"]
[EndTime "10:08:08 PDT"]
[Termination "Game drawn - insufficient material"]

1. d4 {[%clk 0:02:58.8]} 1... Nf6 {[%clk 0:02:57.9]} 2. c4 {[%clk 0:02:59.5]}
2... e6 {[%clk 0:02:56.4]} 3. Nc3 {[%clk 0:03:00]} 3... Bb4 {[%clk 0:02:55.7]}
4. Bd2 {[%clk 0:02:58.9]} 4... O-O {[%clk 0:02:55.3]} 5. Nf3 {[%clk 0:02:59.4]}
5... b6 {[%clk 0:02:47.1]} 6. a3 {[%clk 0:02:57.1]} 6... Bxc3 {[%clk 0:02:46.8]}
7. Bxc3 {[%clk 0:02:57.5]} 7... Bb7 {[%clk 0:02:46.4]} 8. e3 {[%clk 0:02:57.5]}
8... d6 {[%clk 0:02:46.5]} 9. Bd3 {[%clk 0:02:56.2]} 9... Nbd7 {[%clk
0:02:46.3]} 10. b4 {[%clk 0:02:55.4]} 10... Qe7 {[%clk 0:02:45.2]} 11. O-O
{[%clk 0:02:55.7]} 11... e5 {[%clk 0:02:45.4]} 12. dxe5 {[%clk 0:02:54.1]} 12...
dxe5 {[%clk 0:02:45.1]} 13. Be2 {[%clk 0:02:54.3]} 13... Rad8 {[%clk 0:02:37]}
14. Qb3 {[%clk 0:02:52.1]} 14... Ne4 {[%clk 0:02:35.3]} 15. Bb2 {[%clk
0:02:46.6]} 15... Ng5 {[%clk 0:02:12.7]} 16. Nxg5 {[%clk 0:02:38.6]} 16... Qxg5
{[%clk 0:02:13.6]} 17. f3 {[%clk 0:02:39.2]} 17... Nf6 {[%clk 0:02:01.5]} 18.
Rad1 {[%clk 0:02:38.2]} 18... h5 {[%clk 0:02:00.9]} 19. Bc1 {[%clk 0:02:36.8]}
19... h4 {[%clk 0:01:58.1]} 20. e4 {[%clk 0:02:33.2]} 20... Qg6 {[%clk
0:01:56.8]} 21. Qe3 {[%clk 0:02:26.4]} 21... Nh5 {[%clk 0:01:55.6]} 22. Qg5
{[%clk 0:02:22.7]} 22... Qxg5 {[%clk 0:01:32.8]} 23. Bxg5 {[%clk 0:02:23.6]}
23... f6 {[%clk 0:01:33.7]} 24. Bxh4 {[%clk 0:02:14.9]} 24... Nf4 {[%clk
0:01:31.4]} 25. Kf2 {[%clk 0:02:08]} 25... Ba6 {[%clk 0:01:25]} 26. b5 {[%clk
0:02:07.2]} 26... Bc8 {[%clk 0:01:22.7]} 27. Bg3 {[%clk 0:02:05.1]} 27... Nxe2
{[%clk 0:01:17.2]} 28. Kxe2 {[%clk 0:02:04.9]} 28... Be6 {[%clk 0:01:17.5]} 29.
Rc1 {[%clk 0:02:03.9]} 29... Rd4 {[%clk 0:01:16.6]} 30. Rfd1 {[%clk 0:02:02.4]}
30... Bxc4+ {[%clk 0:01:09.7]} 31. Ke1 {[%clk 0:01:59.8]} 31... Rxd1+ {[%clk
0:01:06.4]} 32. Rxd1 {[%clk 0:01:58.5]} 32... Bxb5 {[%clk 0:01:05.5]} 33. Bf2
{[%clk 0:01:57.2]} 33... Kf7 {[%clk 0:01:03.2]} 34. Rb1 {[%clk 0:01:54.3]} 34...
a6 {[%clk 0:00:59.8]} 35. Rc1 {[%clk 0:01:51.8]} 35... c5 {[%clk 0:00:51.3]} 36.
Rb1 {[%clk 0:01:49.3]} 36... Rb8 {[%clk 0:00:46.3]} 37. a4 {[%clk 0:01:46.3]}
37... Bxa4 {[%clk 0:00:46.4]} 38. Bxc5 {[%clk 0:01:46.5]} 38... Bb5 {[%clk
0:00:46]} 39. Be3 {[%clk 0:01:45.3]} 39... Ke6 {[%clk 0:00:45.1]} 40. h4 {[%clk
0:01:44.4]} 40... Kd7 {[%clk 0:00:42.3]} 41. g4 {[%clk 0:01:44.3]} 41... Kc6
{[%clk 0:00:42.5]} 42. h5 {[%clk 0:01:44.7]} 42... Bc4 {[%clk 0:00:41.6]} 43. f4
{[%clk 0:01:41.6]} 43... exf4 {[%clk 0:00:41.2]} 44. Bxf4 {[%clk 0:01:42.5]}
44... Re8 {[%clk 0:00:41.7]} 45. Kf2 {[%clk 0:01:41.1]} 45... Rxe4 {[%clk
0:00:41.5]} 46. Kf3 {[%clk 0:01:41.7]} 46... Re6 {[%clk 0:00:39.2]} 47. g5
{[%clk 0:01:38.2]} 47... fxg5 {[%clk 0:00:37.5]} 48. Bxg5 {[%clk 0:01:39.1]}
48... b5 {[%clk 0:00:37.1]} 49. Be3 {[%clk 0:01:35]} 49... a5 {[%clk 0:00:36.6]}
50. Bd4 {[%clk 0:01:35]} 50... Rh6 {[%clk 0:00:33.3]} 51. Kg4 {[%clk 0:01:33.5]}
51... g6 {[%clk 0:00:32.5]} 52. Rh1 {[%clk 0:01:24.1]} 52... Rxh5 {[%clk
0:00:31]} 53. Rxh5 {[%clk 0:01:23.3]} 53... gxh5+ {[%clk 0:00:31.9]} 54. Kxh5
{[%clk 0:01:24.2]} 54... Kd5 {[%clk 0:00:32.2]} 55. Bc3 {[%clk 0:01:24.3]} 55...
b4 {[%clk 0:00:32.5]} 56. Bd2 {[%clk 0:01:23]} 56... Kc5 {[%clk 0:00:32.5]} 57.
Kg5 {[%clk 0:01:22.4]} 57... a4 {[%clk 0:00:32.9]} 58. Kf4 {[%clk 0:01:23]}
58... a3 {[%clk 0:00:33.2]} 59. Ke4 {[%clk 0:01:22.4]} 59... a2 {[%clk 0:00:33]}
60. Be3+ {[%clk 0:01:22.8]} 60... Kb5 {[%clk 0:00:32.6]} 61. Bd4 {[%clk
0:01:23.4]} 61... Ka4 {[%clk 0:00:32.8]} 62. Ke3 {[%clk 0:01:20.4]} 62... Kb3
{[%clk 0:00:24.3]} 63. Kd2 {[%clk 0:01:20.6]} 63... Bf7 {[%clk 0:00:15.5]} 64.
Kc1 {[%clk 0:01:20.3]} 64... Bg6 {[%clk 0:00:15.6]} 65. Be5 {[%clk 0:01:20]}
65... Be4 {[%clk 0:00:15.5]} 66. Bf6 {[%clk 0:01:20.1]} 66... Ka3 {[%clk
0:00:14.1]} 67. Bd4 {[%clk 0:01:18.5]} 67... Bd3 {[%clk 0:00:14]} 68. Be5 {[%clk
0:01:18.5]} 68... Bh7 {[%clk 0:00:14.5]} 69. Bf6 {[%clk 0:01:18.9]} 69... b3
{[%clk 0:00:14.7]} 70. Be5 {[%clk 0:01:18.6]} 70... Kb4 {[%clk 0:00:14.6]} 71.
Kb2 {[%clk 0:01:18.3]} 71... Kc4 {[%clk 0:00:14.9]} 72. Bf6 {[%clk 0:01:18.2]}
72... Bc2 {[%clk 0:00:15.8]} 73. Bg7 {[%clk 0:01:18.4]} 73... Kd3 {[%clk
0:00:15.9]} 74. Bh8 {[%clk 0:01:18.3]} 74... Kd2 {[%clk 0:00:16.8]} 75. Bg7
{[%clk 0:01:18.3]} 75... Bd1 {[%clk 0:00:16.8]} 76. Bf6 {[%clk 0:01:18.6]} 76...
a1=Q+ {[%clk 0:00:16.9]} 77. Kxa1 {[%clk 0:01:18.1]} 77... Kc1 {[%clk
0:00:17.3]} 78. Be5 {[%clk 0:01:17]} 78... Kc2 {[%clk 0:00:18]} 79. Bf6 {[%clk
0:01:16.9]} 79... Be2 {[%clk 0:00:18.7]} 80. Bg7 {[%clk 0:01:16.7]} 80... Bc4
{[%clk 0:00:19.6]} 81. Bh8 {[%clk 0:01:16.6]} 81... b2+ {[%clk 0:00:19.7]} 82.
Bxb2 {[%clk 0:01:16.5]} 1/2-1/2

[Event "*** SCC Grand Prix: Titled Tuesday Blitz"]
[Site "Chess.com"]
[Date "2020.10.13"]
[Round "1"]
[White "Kildepiotr"]
[Black "brunomorado"]
[Result "1-0"]
[WhiteElo "2638"]
[BlackElo "2306"]
[TimeControl "180+1"]
[EndTime "10:08:11 PDT"]
[Termination "Kildepiotr won by checkmate"]

1. Nf3 {[%clk 0:03:00.9]} 1... Nf6 {[%clk 0:03:00.1]} 2. g3 {[%clk 0:03:00.2]}
2... d5 {[%clk 0:02:59.9]} 3. Bg2 {[%clk 0:03:00.8]} 3... Bf5 {[%clk 0:03:00.6]}
4. O-O {[%clk 0:03:01.3]} 4... e6 {[%clk 0:03:01.2]} 5. d3 {[%clk 0:03:01.9]}
5... c5 {[%clk 0:03:00.7]} 6. Nbd2 {[%clk 0:03:02.4]} 6... Nc6 {[%clk
0:02:59.5]} 7. c3 {[%clk 0:03:02.8]} 7... Be7 {[%clk 0:02:58.5]} 8. Qe1 {[%clk
0:03:00.6]} 8... O-O {[%clk 0:02:57]} 9. e4 {[%clk 0:03:00.7]} 9... Bg6 {[%clk
0:02:54.8]} 10. Nh4 {[%clk 0:03:00.3]} 10... dxe4 {[%clk 0:02:50.5]} 11. Nxg6
{[%clk 0:02:58.5]} 11... hxg6 {[%clk 0:02:50.2]} 12. dxe4 {[%clk 0:02:58.5]}
12... Qd3 {[%clk 0:02:47.3]} 13. Bf3 {[%clk 0:02:33.6]} 13... Rfd8 {[%clk
0:02:40.5]} 14. Be2 {[%clk 0:02:33.3]} 14... Qc2 {[%clk 0:02:39]} 15. Qd1 {[%clk
0:02:26.5]} 15... Qxd1 {[%clk 0:02:36.3]} 16. Rxd1 {[%clk 0:02:27.4]} 16... Rd7
{[%clk 0:02:32.1]} 17. f3 {[%clk 0:02:13.6]} 17... Rad8 {[%clk 0:02:31.1]} 18.
Kf1 {[%clk 0:02:12.4]} 18... Ne5 {[%clk 0:02:21.1]} 19. Ke1 {[%clk 0:02:10.3]}
19... Nd3+ {[%clk 0:02:20.3]} 20. Bxd3 {[%clk 0:02:09.5]} 20... Rxd3 {[%clk
0:02:21.2]} 21. Ke2 {[%clk 0:02:02.4]} 21... c4 {[%clk 0:02:19.3]} 22. Rf1
{[%clk 0:01:57.2]} 22... b5 {[%clk 0:02:15.7]} 23. a4 {[%clk 0:01:56.8]} 23...
a6 {[%clk 0:02:12.1]} 24. axb5 {[%clk 0:01:56.7]} 24... axb5 {[%clk 0:02:13]}
25. Ra5 {[%clk 0:01:55.6]} 25... Rb8 {[%clk 0:02:07.6]} 26. Rd1 {[%clk
0:01:35.6]} 26... Bd8 {[%clk 0:01:55.6]} 27. Ra6 {[%clk 0:01:27.9]} 27... Nd7
{[%clk 0:01:39.2]} 28. Nf1 {[%clk 0:01:26]} 28... Rxd1 {[%clk 0:01:40.1]} 29.
Kxd1 {[%clk 0:01:25.5]} 29... Nc5 {[%clk 0:01:40.3]} 30. Ra2 {[%clk 0:01:15.8]}
30... Nd3 {[%clk 0:01:33]} 31. Be3 {[%clk 0:01:15.2]} 31... Bb6 {[%clk
0:01:26.7]} 32. Bxb6 {[%clk 0:01:06.2]} 32... Rxb6 {[%clk 0:01:27.6]} 33. Ne3
{[%clk 0:01:04]} 33... Rd6 {[%clk 0:01:24.2]} 34. Ra8+ {[%clk 0:00:39.9]} 34...
Kh7 {[%clk 0:01:24.2]} 35. Ke2 {[%clk 0:00:40.3]} 35... Nc1+ {[%clk 0:01:05.1]}
36. Kf1 {[%clk 0:00:25.4]} 36... Rd3 {[%clk 0:01:03.9]} 37. Ng4 {[%clk
0:00:20.5]} 37... Rd1+ {[%clk 0:01:01.2]} 38. Kf2 {[%clk 0:00:19.1]} 38... Rd2+
{[%clk 0:01:01.4]} 39. Ke3 {[%clk 0:00:18.8]} 39... Rxb2 {[%clk 0:01:00.3]} 40.
Ne5 {[%clk 0:00:16.1]} 40... g5 {[%clk 0:00:58.4]} 41. Nxf7 {[%clk 0:00:11.4]}
41... Re2+ {[%clk 0:00:57.3]} 42. Kd4 {[%clk 0:00:11.5]} 42... Rxh2 {[%clk
0:00:44.5]} 43. Nxg5+ {[%clk 0:00:10.7]} 43... Kg6 {[%clk 0:00:44.6]} 44. f4
{[%clk 0:00:11.1]} 44... Ne2+ {[%clk 0:00:41.8]} 45. Ke5 {[%clk 0:00:10.9]}
45... Nxc3 {[%clk 0:00:40.8]} 46. Nxe6 {[%clk 0:00:11.2]} 46... b4 {[%clk
0:00:38.4]} 47. f5+ {[%clk 0:00:11.5]} 47... Kf7 {[%clk 0:00:35.3]} 48. Ra7+
{[%clk 0:00:11.9]} 48... Kg8 {[%clk 0:00:31.7]} 49. Rxg7+ {[%clk 0:00:11.3]}
49... Kh8 {[%clk 0:00:32.2]} 50. f6 {[%clk 0:00:11.6]} 50... b3 {[%clk
0:00:24.9]} 51. Nf4 {[%clk 0:00:11.4]} 51... Rh6 {[%clk 0:00:19.6]} 52. Ng6+
{[%clk 0:00:11]} 52... Rxg6 {[%clk 0:00:19.7]} 53. Rxg6 {[%clk 0:00:11.9]} 53...
b2 {[%clk 0:00:20.6]} 54. f7 {[%clk 0:00:12.2]} 54... Kh7 {[%clk 0:00:14.9]} 55.
f8=Q {[%clk 0:00:12.1]} 55... Kxg6 {[%clk 0:00:14.8]} 56. Qf6+ {[%clk
0:00:11.4]} 56... Kh7 {[%clk 0:00:15.2]} 57. Qf7+ {[%clk 0:00:09.6]} 57... Kh6
{[%clk 0:00:14.1]} 58. Kf5 {[%clk 0:00:09.6]} 58... b1=Q {[%clk 0:00:11.6]} 59.
Qg6# {[%clk 0:00:10.5]} 1-0

[Event "*** SCC Grand Prix: Titled Tuesday Blitz"]
[Site "Chess.com"]
[Date "2020.10.13"]
[Round "1"]
[White "vinniethepooh"]
[Black "AnnaChessLook"]
[Result "0-1"]
[WhiteElo "2546"]
[BlackElo "2230"]
[TimeControl "180+1"]
[EndTime "10:08:12 PDT"]
[Termination "AnnaChessLook won by checkmate"]

1. d4 {[%clk 0:03:00.9]} 1... Nf6 {[%clk 0:02:58]} 2. c4 {[%clk 0:03:00.9]} 2...
c5 {[%clk 0:02:56.6]} 3. d5 {[%clk 0:03:00.9]} 3... b5 {[%clk 0:02:57.1]} 4.
cxb5 {[%clk 0:03:00.6]} 4... a6 {[%clk 0:02:56.9]} 5. bxa6 {[%clk 0:03:01.5]}
5... g6 {[%clk 0:02:56]} 6. Nc3 {[%clk 0:03:01.4]} 6... Bg7 {[%clk 0:02:55.9]}
7. e4 {[%clk 0:03:01.7]} 7... Qa5 {[%clk 0:02:56]} 8. Bd2 {[%clk 0:03:00]} 8...
O-O {[%clk 0:02:54.9]} 9. Nf3 {[%clk 0:02:59.4]} 9... Bxa6 {[%clk 0:02:51.3]}
10. Be2 {[%clk 0:02:59.1]} 10... Bxe2 {[%clk 0:02:49]} 11. Qxe2 {[%clk 0:03:00]}
11... Qa6 {[%clk 0:02:49.3]} 12. e5 {[%clk 0:02:59.9]} 12... Ng4 {[%clk
0:02:46.4]} 13. Bf4 {[%clk 0:02:58.7]} 13... d6 {[%clk 0:02:28.8]} 14. exd6
{[%clk 0:02:38.2]} 14... exd6 {[%clk 0:02:27.6]} 15. Qxa6 {[%clk 0:02:29.7]}
15... Rxa6 {[%clk 0:02:28.5]} 16. h3 {[%clk 0:02:14.7]} 16... Nf6 {[%clk
0:02:27.3]} 17. O-O-O {[%clk 0:02:07.4]} 17... Nbd7 {[%clk 0:02:25]} 18. Rhe1
{[%clk 0:02:06.8]} 18... Rb8 {[%clk 0:02:14.9]} 19. Re2 {[%clk 0:01:36.5]} 19...
Nh5 {[%clk 0:01:28.8]} 20. Bh2 {[%clk 0:01:30.1]} 20... Rab6 {[%clk 0:01:27.7]}
21. Na4 {[%clk 0:01:13]} 21... Ra6 {[%clk 0:01:13.7]} 22. Nc3 {[%clk 0:00:54.8]}
22... Rab6 {[%clk 0:00:56.4]} 23. g4 {[%clk 0:00:54.1]} 23... Bh6+ {[%clk
0:00:47]} 24. Kb1 {[%clk 0:00:49.7]} 24... Nf4 {[%clk 0:00:46.1]} 25. Re7 {[%clk
0:00:37.1]} 25... Rxb2+ {[%clk 0:00:34.2]} 26. Ka1 {[%clk 0:00:36.9]} 26... Ne5
{[%clk 0:00:30.9]} 27. Nxe5 {[%clk 0:00:24.7]} 27... dxe5 {[%clk 0:00:31.8]} 28.
d6 {[%clk 0:00:16.1]} 28... Bf8 {[%clk 0:00:26.3]} 29. Re8 {[%clk 0:00:05.5]}
29... Rxe8 {[%clk 0:00:24.2]} 30. Kxb2 {[%clk 0:00:05.6]} 30... Rd8 {[%clk
0:00:24.5]} 31. d7 {[%clk 0:00:04.7]} 31... g5 {[%clk 0:00:22.9]} 32. Bxf4
{[%clk 0:00:03]} 32... gxf4 {[%clk 0:00:23.8]} 33. Ne4 {[%clk 0:00:03.3]} 33...
Kg7 {[%clk 0:00:22.8]} 34. g5 {[%clk 0:00:03.7]} 34... Kg6 {[%clk 0:00:22.5]}
35. Kc3 {[%clk 0:00:02.3]} 35... Kf5 {[%clk 0:00:18.5]} 36. f3 {[%clk
0:00:02.7]} 36... Ke6 {[%clk 0:00:18.8]} 37. Nf6 {[%clk 0:00:03.1]} 37... Be7
{[%clk 0:00:17.5]} 38. Kc4 {[%clk 0:00:03.6]} 38... Bxf6 {[%clk 0:00:17.4]} 39.
gxf6 {[%clk 0:00:04.5]} 39... Rxd7 {[%clk 0:00:16.4]} 40. Rxd7 {[%clk
0:00:04.6]} 40... Kxd7 {[%clk 0:00:17.3]} 41. Kxc5 {[%clk 0:00:05]} 41... e4
{[%clk 0:00:17.1]} 42. Kd4 {[%clk 0:00:02.8]} 42... e3 {[%clk 0:00:17.3]} 43.
Kd3 {[%clk 0:00:03]} 43... Kc6 {[%clk 0:00:17.6]} 44. Ke2 {[%clk 0:00:01.6]}
44... Kb5 {[%clk 0:00:18.2]} 45. Kd3 {[%clk 0:00:01.4]} 45... Ka4 {[%clk
0:00:19.1]} 46. Ke4 {[%clk 0:00:01.2]} 46... Ka3 {[%clk 0:00:20]} 47. Kxf4
{[%clk 0:00:01.2]} 47... e2 {[%clk 0:00:20.6]} 48. Kg5 {[%clk 0:00:02.1]} 48...
e1=Q {[%clk 0:00:21.5]} 49. Kh6 {[%clk 0:00:02.1]} 49... Qh4+ {[%clk 0:00:20.5]}
50. Kg7 {[%clk 0:00:02.3]} 50... Qh5 {[%clk 0:00:20]} 51. f4 {[%clk 0:00:02.1]}
51... Kxa2 {[%clk 0:00:20.3]} 52. f5 {[%clk 0:00:03]} 52... Kb3 {[%clk
0:00:20.9]} 53. h4 {[%clk 0:00:03.6]} 53... Kc4 {[%clk 0:00:21.3]} 54. Kg8
{[%clk 0:00:04.3]} 54... Kd5 {[%clk 0:00:21.5]} 55. Kh8 {[%clk 0:00:05]} 55...
Ke5 {[%clk 0:00:21.2]} 56. Kg7 {[%clk 0:00:05.9]} 56... Kxf5 {[%clk 0:00:20.8]}
57. Kh8 {[%clk 0:00:06.8]} 57... Kxf6 {[%clk 0:00:20.5]} 58. Kg8 {[%clk
0:00:06.9]} 58... Qg6+ {[%clk 0:00:21]} 59. Kh8 {[%clk 0:00:06.7]} 59... Qg7#
{[%clk 0:00:21.9]} 0-1

[Event "*** SCC Grand Prix: Titled Tuesday Blitz"]
[Site "Chess.com"]
[Date "2020.10.13"]
[Round "1"]
[White "zverr1"]
[Black "Denis_Makhnyov"]
[Result "1-0"]
[WhiteElo "2489"]
[BlackElo "2883"]
[TimeControl "180+1"]
[EndTime "10:08:13 PDT"]
[Termination "zverr1 won by resignation"]

1. d4 {[%clk 0:02:58.6]} 1... d5 {[%clk 0:02:59.8]} 2. c4 {[%clk 0:02:58.4]}
2... dxc4 {[%clk 0:03:00.7]} 3. Nf3 {[%clk 0:02:56.1]} 3... Nf6 {[%clk
0:03:00.7]} 4. e3 {[%clk 0:02:57]} 4... Nc6 {[%clk 0:03:01]} 5. Bxc4 {[%clk
0:02:56.6]} 5... e5 {[%clk 0:03:01.6]} 6. O-O {[%clk 0:02:50.2]} 6... exd4
{[%clk 0:03:01.5]} 7. exd4 {[%clk 0:02:51.1]} 7... Be7 {[%clk 0:03:01.7]} 8. Nc3
{[%clk 0:02:48]} 8... O-O {[%clk 0:03:01.7]} 9. Bg5 {[%clk 0:02:45.3]} 9... h6
{[%clk 0:02:59.9]} 10. Bh4 {[%clk 0:02:44]} 10... Bg4 {[%clk 0:02:59.4]} 11. d5
{[%clk 0:02:35.4]} 11... Ne5 {[%clk 0:02:53.3]} 12. Be2 {[%clk 0:02:33.6]} 12...
Ng6 {[%clk 0:02:48.9]} 13. Bg3 {[%clk 0:02:30.2]} 13... Bxf3 {[%clk 0:02:48.2]}
14. Bxf3 {[%clk 0:02:31.1]} 14... Bd6 {[%clk 0:02:48.4]} 15. Qd3 {[%clk
0:02:26.5]} 15... a6 {[%clk 0:02:44.5]} 16. Rfe1 {[%clk 0:02:23.4]} 16... Bxg3
{[%clk 0:02:43.1]} 17. hxg3 {[%clk 0:02:23.2]} 17... Qd6 {[%clk 0:02:43.1]} 18.
Ne4 {[%clk 0:02:10.8]} 18... Nxe4 {[%clk 0:02:43]} 19. Bxe4 {[%clk 0:02:11.7]}
19... Ne5 {[%clk 0:02:43.3]} 20. Qb3 {[%clk 0:02:06.8]} 20... Rab8 {[%clk
0:02:37.8]} 21. Rac1 {[%clk 0:02:03.5]} 21... Rfe8 {[%clk 0:02:37.6]} 22. Qc3
{[%clk 0:02:01.1]} 22... Re7 {[%clk 0:02:36]} 23. f4 {[%clk 0:01:49.4]} 23...
Ng4 {[%clk 0:01:58.8]} 24. Bf3 {[%clk 0:01:26.5]} 24... Rxe1+ {[%clk 0:01:58.1]}
25. Qxe1 {[%clk 0:01:22.8]} 25... Nf6 {[%clk 0:01:57.5]} 26. Qe5 {[%clk
0:01:02.8]} 26... Ne8 {[%clk 0:01:12.8]} 27. Qxd6 {[%clk 0:00:59.6]} 27... cxd6
{[%clk 0:01:13.7]} 28. a4 {[%clk 0:00:44.7]} 28... Kf8 {[%clk 0:01:13.6]} 29. b4
{[%clk 0:00:40.6]} 29... Ke7 {[%clk 0:01:13.5]} 30. Kf2 {[%clk 0:00:41.2]} 30...
Kd8 {[%clk 0:01:12.1]} 31. Ke3 {[%clk 0:00:41.3]} 31... Nf6 {[%clk 0:01:05.7]}
32. Kd4 {[%clk 0:00:41.1]} 32... Nd7 {[%clk 0:01:04.9]} 33. a5 {[%clk
0:00:39.8]} 33... Nf6 {[%clk 0:00:58.5]} 34. Be2 {[%clk 0:00:36.3]} 34... Ra8
{[%clk 0:00:56.8]} 35. g4 {[%clk 0:00:33.4]} 35... Kd7 {[%clk 0:00:43.7]} 36. g5
{[%clk 0:00:30.4]} 36... hxg5 {[%clk 0:00:40.9]} 37. fxg5 {[%clk 0:00:31.3]}
37... Ne8 {[%clk 0:00:41.5]} 38. Bg4+ {[%clk 0:00:30.6]} 38... Kd8 {[%clk
0:00:41.8]} 39. Rf1 {[%clk 0:00:26.2]} 39... Ke7 {[%clk 0:00:41.6]} 40. Re1+
{[%clk 0:00:25]} 40... Kf8 {[%clk 0:00:41.6]} 41. Rc1 {[%clk 0:00:25.5]} 41...
Rd8 {[%clk 0:00:40.9]} 42. Rc8 {[%clk 0:00:23.9]} 42... Ke7 {[%clk 0:00:39.9]}
43. Bf5 {[%clk 0:00:17.9]} 43... g6 {[%clk 0:00:39]} 44. Bg4 {[%clk 0:00:17.8]}
44... Ng7 {[%clk 0:00:30]} 45. Rc7+ {[%clk 0:00:16.6]} 45... Kf8 {[%clk
0:00:29.9]} 46. Rxb7 {[%clk 0:00:17.2]} 46... Re8 {[%clk 0:00:30.2]} 47. Rb6
{[%clk 0:00:16.7]} 47... Re1 {[%clk 0:00:28.7]} 48. Rxa6 {[%clk 0:00:16.3]}
48... Rb1 {[%clk 0:00:26.7]} 49. Rb6 {[%clk 0:00:16.3]} 49... Ne8 {[%clk
0:00:26.6]} 50. a6 {[%clk 0:00:15.5]} 50... Nc7 {[%clk 0:00:27.3]} 51. a7 {[%clk
0:00:15.9]} 51... Ra1 {[%clk 0:00:27.6]} 52. Rb7 {[%clk 0:00:14.6]} 52... Rxa7
{[%clk 0:00:27.8]} 53. Rxa7 {[%clk 0:00:13.4]} 53... Nb5+ {[%clk 0:00:28.4]} 54.
Kc4 {[%clk 0:00:14.3]} 54... Nxa7 {[%clk 0:00:29]} 55. b5 {[%clk 0:00:15.2]}
55... f5 {[%clk 0:00:28.7]} 56. gxf6 {[%clk 0:00:14.7]} 56... Nxb5 {[%clk
0:00:14.7]} 57. Kxb5 {[%clk 0:00:15.6]} 57... Kf7 {[%clk 0:00:14.7]} 58. Kc6
{[%clk 0:00:15.3]} 58... Kxf6 {[%clk 0:00:15.6]} 59. Kxd6 {[%clk 0:00:16.2]}
59... Kg5 {[%clk 0:00:16]} 60. Bf3 {[%clk 0:00:16.5]} 60... Kf4 {[%clk
0:00:16.5]} 61. Kc7 {[%clk 0:00:16.6]} 61... g5 {[%clk 0:00:17.4]} 62. d6 {[%clk
0:00:17.2]} 62... g4 {[%clk 0:00:18.3]} 63. Bxg4 {[%clk 0:00:17.8]} 63... Kxg4
{[%clk 0:00:18.8]} 64. d7 {[%clk 0:00:18.7]} 64... Kg3 {[%clk 0:00:19.7]} 65.
d8=Q {[%clk 0:00:19.2]} 65... Kxg2 {[%clk 0:00:20.6]} 66. Qg5+ {[%clk
0:00:19.2]} 1-0

[Event "*** SCC Grand Prix: Titled Tuesday Blitz"]
[Site "Chess.com"]
[Date "2020.10.13"]
[Round "1"]
[White "KonstantinB_1983"]
[Black "lacafi"]
[Result "0-1"]
[WhiteElo "2509"]
[BlackElo "2124"]
[TimeControl "180+1"]
[EndTime "10:08:13 PDT"]
[Termination "lacafi won on time"]

1. d4 {[%clk 0:02:59.5]} 1... f5 {[%clk 0:02:59.6]} 2. Nc3 {[%clk 0:02:57.6]}
2... Nf6 {[%clk 0:02:59.8]} 3. Bg5 {[%clk 0:02:56.2]} 3... g6 {[%clk 0:02:59]}
4. h4 {[%clk 0:02:50.9]} 4... Bg7 {[%clk 0:02:56.8]} 5. e4 {[%clk 0:02:48.4]}
5... Nxe4 {[%clk 0:02:54.2]} 6. Nxe4 {[%clk 0:02:47.4]} 6... fxe4 {[%clk
0:02:54.6]} 7. h5 {[%clk 0:02:46]} 7... d5 {[%clk 0:02:50.9]} 8. hxg6 {[%clk
0:02:40.7]} 8... hxg6 {[%clk 0:02:51.1]} 9. Rxh8+ {[%clk 0:02:40.4]} 9... Bxh8
{[%clk 0:02:52]} 10. f3 {[%clk 0:02:39.5]} 10... exf3 {[%clk 0:02:49.1]} 11.
Nxf3 {[%clk 0:02:36.1]} 11... Bf6 {[%clk 0:02:48.8]} 12. Bd3 {[%clk 0:02:34.2]}
12... Bf5 {[%clk 0:02:16]} 13. Qd2 {[%clk 0:02:19.2]} 13... Nc6 {[%clk
0:02:11.5]} 14. c3 {[%clk 0:02:17.9]} 14... Qd7 {[%clk 0:02:07.8]} 15. Bb5
{[%clk 0:02:08.1]} 15... O-O-O {[%clk 0:02:03]} 16. O-O-O {[%clk 0:02:06.2]}
16... Qd6 {[%clk 0:01:43.7]} 17. Bf4 {[%clk 0:02:03.4]} 17... e5 {[%clk
0:01:14.2]} 18. dxe5 {[%clk 0:01:42.9]} 18... Nxe5 {[%clk 0:01:14]} 19. Nd4
{[%clk 0:01:37.5]} 19... c6 {[%clk 0:00:56.4]} 20. Nxf5 {[%clk 0:01:30.5]} 20...
gxf5 {[%clk 0:00:56.2]} 21. Be2 {[%clk 0:01:28.9]} 21... Qd7 {[%clk 0:00:42]}
22. Qc2 {[%clk 0:01:26.7]} 22... Rf8 {[%clk 0:00:38.1]} 23. Kb1 {[%clk
0:01:20.2]} 23... Ng4 {[%clk 0:00:36.8]} 24. Bd3 {[%clk 0:01:15.5]} 24... Be5
{[%clk 0:00:32.2]} 25. Bc1 {[%clk 0:01:12.9]} 25... f4 {[%clk 0:00:30.7]} 26.
Re1 {[%clk 0:01:04.1]} 26... Bd6 {[%clk 0:00:28.5]} 27. a4 {[%clk 0:00:56.2]}
27... Kb8 {[%clk 0:00:28.2]} 28. a5 {[%clk 0:00:55.1]} 28... Bc5 {[%clk
0:00:25.5]} 29. a6 {[%clk 0:00:48.7]} 29... b6 {[%clk 0:00:25.3]} 30. b4 {[%clk
0:00:43]} 30... Be3 {[%clk 0:00:25]} 31. Bb2 {[%clk 0:00:38.6]} 31... Qd6 {[%clk
0:00:22.5]} 32. Rh1 {[%clk 0:00:34.3]} 32... Nf6 {[%clk 0:00:19.5]} 33. Rh6
{[%clk 0:00:32.7]} 33... Qe7 {[%clk 0:00:18.9]} 34. Rg6 {[%clk 0:00:30.6]} 34...
Ne4 {[%clk 0:00:18.9]} 35. Ka2 {[%clk 0:00:26.2]} 35... c5 {[%clk 0:00:17.5]}
36. Qa4 {[%clk 0:00:23.2]} 36... cxb4 {[%clk 0:00:16.7]} 37. Qc6 {[%clk
0:00:19.4]} 37... Nxc3+ {[%clk 0:00:13]} 38. Bxc3 {[%clk 0:00:17.8]} 38... bxc3
{[%clk 0:00:13.2]} 39. Qxc3 {[%clk 0:00:15.8]} 39... Rc8 {[%clk 0:00:13.5]} 40.
Qb3 {[%clk 0:00:13.4]} 40... Qc7 {[%clk 0:00:08.5]} 41. Qxd5 {[%clk 0:00:10.8]}
41... Bc5 {[%clk 0:00:06.5]} 42. Re6 {[%clk 0:00:07.9]} 42... Be3 {[%clk
0:00:06.4]} 43. Rf6 {[%clk 0:00:06.5]} 43... Rd8 {[%clk 0:00:06.6]} 44. Qe4
{[%clk 0:00:04.1]} 44... Qd7 {[%clk 0:00:05]} 45. Re6 {[%clk 0:00:03.5]} 45...
Qxd3 {[%clk 0:00:05]} 46. Qxd3 {[%clk 0:00:03.2]} 46... Rxd3 {[%clk 0:00:05.5]}
47. Kb2 {[%clk 0:00:03.4]} 47... Rd2+ {[%clk 0:00:05.4]} 48. Kc3 {[%clk
0:00:03.3]} 48... Rxg2 {[%clk 0:00:06.3]} 49. Kc4 {[%clk 0:00:03.5]} 49... Kc7
{[%clk 0:00:06.7]} 50. Kd5 {[%clk 0:00:03.3]} 50... Rd2+ {[%clk 0:00:06.5]} 51.
Kc4 {[%clk 0:00:02.5]} 51... Ra2 {[%clk 0:00:06.4]} 52. Re7+ {[%clk 0:00:01.7]}
52... Kc6 {[%clk 0:00:06.8]} 53. Rxa7 {[%clk 0:00:01.2]} 53... f3 {[%clk
0:00:07.3]} 54. Kb3 {[%clk 0:00:01.2]} 54... Rd2 {[%clk 0:00:06.6]} 55. Kc3
{[%clk 0:00:01.1]} 55... f2 {[%clk 0:00:06.9]} 56. Rf7 {[%clk 0:00:01.2]} 56...
Rd1 {[%clk 0:00:07]} 57. a7 {[%clk 0:00:01.2]} 57... Ra1 {[%clk 0:00:07.6]} 0-1